[Event "Titled Tuesday Blitz August 08 Late 2023"]
[White "Nguyen, Ngoc Truong Son"]
[Black "Mekhitarian, Krikor Sevag"]
[WhiteFideId "12401110"]
[BlackFideId "2107660"]
[WhiteElo "2949"]
[BlackElo "2760"]
[Result "1-0"]
[Round "7"]
[TimeControl "180+1"]
[Date "2023.08.08"]
[WhiteClock "0:00:16"]
[BlackClock "0:00:00"]
[Board "11"]

1. d4 {[%clk 0:02:57]}  Nf6 {[%clk 0:03:00]} 2. c4 {[%clk 0:02:57]}  g6 {[%clk 0:03:00]} 3. Nc3 {[%clk 0:02:58]}  d5 {[%clk 0:02:59]} 4. Bg5 {[%clk 0:02:56]}  Bg7 {[%clk 0:02:56]} 5. Bxf6 {[%clk 0:02:53]}  Bxf6 {[%clk 0:02:57]} 6. cxd5 {[%clk 0:02:52]}  c6 {[%clk 0:02:57]} 7. dxc6 {[%clk 0:02:50]}  Qxd4 {[%clk 0:02:57]} 8. Qxd4 {[%clk 0:02:49]}  Bxd4 {[%clk 0:02:58]} 9. Nb5 {[%clk 0:02:37]}  Bb6 {[%clk 0:01:29]} 10. cxb7 {[%clk 0:02:31]}  Bxb7 {[%clk 0:01:29]} 11. Nf3 {[%clk 0:02:26]}  O-O {[%clk 0:01:23]} 12. e3 {[%clk 0:02:24]}  Nc6 {[%clk 0:01:22]} 13. Be2 {[%clk 0:02:23]}  Rac8 {[%clk 0:01:10]} 14. O-O {[%clk 0:02:22]}  Nb4 {[%clk 0:01:09]} 15. a3 {[%clk 0:02:20]}  Nd5 {[%clk 0:01:02]} 16. Nbd4 {[%clk 0:02:13]}  Rfd8 {[%clk 0:00:47]} 17. Rfc1 {[%clk 0:02:03]}  Kg7 {[%clk 0:00:42]} 18. g3 {[%clk 0:01:57]}  Nf6 {[%clk 0:00:41]} 19. Rxc8 {[%clk 0:01:47]}  Rxc8 {[%clk 0:00:40]} 20. Rd1 {[%clk 0:01:48]}  Ne4 {[%clk 0:00:40]} 21. Bf1 {[%clk 0:01:29]}  f6 {[%clk 0:00:30]} 22. Ne6+ {[%clk 0:01:17]}  Kf7 {[%clk 0:00:28]} 23. Nfd4 {[%clk 0:01:17]}  Bd5 {[%clk 0:00:14]} 24. Nf4 {[%clk 0:01:16]}  Ba2 {[%clk 0:00:14]} 25. Bg2 {[%clk 0:01:06]}  f5 {[%clk 0:00:14]} 26. Nd3 {[%clk 0:00:59]}  Kf6 {[%clk 0:00:12]} 27. Rc1 {[%clk 0:00:52]}  Rxc1+ {[%clk 0:00:10]} 28. Nxc1 {[%clk 0:00:53]}  Bf7 {[%clk 0:00:10]} 29. Bxe4 {[%clk 0:00:45]}  fxe4 {[%clk 0:00:09]} 30. Nce2 {[%clk 0:00:45]}  e5 {[%clk 0:00:09]} 31. Nb5 {[%clk 0:00:42]}  Bc4 {[%clk 0:00:08]} 32. Nec3 {[%clk 0:00:43]}  Ke6 {[%clk 0:00:06]} 33. a4 {[%clk 0:00:39]}  a6 {[%clk 0:00:05]} 34. Na3 {[%clk 0:00:38]}  Bd3 {[%clk 0:00:05]} 35. b4 {[%clk 0:00:35]}  Bd8 {[%clk 0:00:04]} 36. b5 {[%clk 0:00:29]}  Ba5 {[%clk 0:00:05]} 37. bxa6 {[%clk 0:00:29]}  Bxa6 {[%clk 0:00:04]} 38. Nxe4 {[%clk 0:00:28]}  Bb4 {[%clk 0:00:04]} 39. Nb5 {[%clk 0:00:28]}  Ke7 {[%clk 0:00:02]} 40. f3 {[%clk 0:00:25]}  Bb7 {[%clk 0:00:03]} 41. Kf2 {[%clk 0:00:24]}  Bc6 {[%clk 0:00:03]} 42. h4 {[%clk 0:00:24]}  h6 {[%clk 0:00:03]} 43. Ke2 {[%clk 0:00:23]}  Ba5 {[%clk 0:00:04]} 44. Kd3 {[%clk 0:00:23]}  Bb6 {[%clk 0:00:04]} 45. g4 {[%clk 0:00:23]}  Ke6 {[%clk 0:00:05]} 46. Nd2 {[%clk 0:00:20]}  Bd8 {[%clk 0:00:05]} 47. h5 {[%clk 0:00:19]}  gxh5 {[%clk 0:00:05]} 48. gxh5 {[%clk 0:00:19]}  Kf5 {[%clk 0:00:06]} 49. e4+ {[%clk 0:00:18]}  Kg5 {[%clk 0:00:06]} 50. Nc4 {[%clk 0:00:19]}  Bf6 {[%clk 0:00:06]} 51. Ncd6 {[%clk 0:00:17]}  Kxh5 {[%clk 0:00:05]} 52. a5 {[%clk 0:00:18]}  Bd8 {[%clk 0:00:03]} 53. a6 {[%clk 0:00:18]}  Bb6 {[%clk 0:00:04]} 54. Nc3 {[%clk 0:00:16]}  Kg6 {[%clk 0:00:03]} 55. Nc4 {[%clk 0:00:16]}  Bd4 {[%clk 0:00:03]} 56. Ne2 {[%clk 0:00:16]}  Bf2 {[%clk 0:00:00]} 57. Nxe5+ {[%clk 0:00:16]} 1-0


[Site "https://www.chess.com"]

[Event "Titled Tuesday Blitz August 08 Late 2023"]
[White "Perez Ponsa, Federico"]
[Black "Gurevich, Dmitry"]
[WhiteFideId "117927"]
[BlackFideId "2000407"]
[WhiteElo "2888"]
[BlackElo "2491"]
[Result "1-0"]
[Round "7"]
[TimeControl "180+1"]
[Date "2023.08.08"]
[WhiteClock "0:00:14"]
[BlackClock "0:00:07"]
[Board "13"]

1. e4 {[%clk 0:02:45]}  c5 {[%clk 0:02:59]} 2. Nf3 {[%clk 0:02:45]}  d6 {[%clk 0:02:58]} 3. d4 {[%clk 0:02:46]}  cxd4 {[%clk 0:02:59]} 4. Nxd4 {[%clk 0:02:47]}  Nf6 {[%clk 0:02:58]} 5. Nc3 {[%clk 0:02:48]}  Nc6 {[%clk 0:02:58]} 6. f3 {[%clk 0:02:47]}  Nxd4 {[%clk 0:02:57]} 7. Qxd4 {[%clk 0:02:47]}  g6 {[%clk 0:02:58]} 8. Be3 {[%clk 0:02:13]}  Bg7 {[%clk 0:02:57]} 9. Bb5+ {[%clk 0:02:14]}  Bd7 {[%clk 0:02:56]} 10. Bxd7+ {[%clk 0:02:13]}  Qxd7 {[%clk 0:02:55]} 11. O-O-O {[%clk 0:02:13]}  Qe6 {[%clk 0:02:42]} 12. Qa4+ {[%clk 0:02:04]}  Qd7 {[%clk 0:02:31]} 13. Qxd7+ {[%clk 0:02:04]}  Nxd7 {[%clk 0:02:30]} 14. Nb5 {[%clk 0:02:05]}  O-O {[%clk 0:02:25]} 15. Kb1 {[%clk 0:01:48]}  a6 {[%clk 0:02:23]} 16. Nc7 {[%clk 0:01:46]}  Rac8 {[%clk 0:02:23]} 17. Nd5 {[%clk 0:01:46]}  Rfe8 {[%clk 0:02:23]} 18. h4 {[%clk 0:01:40]}  h5 {[%clk 0:02:19]} 19. c3 {[%clk 0:01:40]}  Nf6 {[%clk 0:02:18]} 20. Nxf6+ {[%clk 0:01:33]}  Bxf6 {[%clk 0:02:18]} 21. Rdg1 {[%clk 0:01:32]}  Kh7 {[%clk 0:02:05]} 22. g4 {[%clk 0:01:33]}  Rg8 {[%clk 0:02:02]} 23. Bg5 {[%clk 0:01:28]}  Kg7 {[%clk 0:01:46]} 24. gxh5 {[%clk 0:01:25]}  gxh5 {[%clk 0:01:45]} 25. f4 {[%clk 0:01:09]}  Bxg5 {[%clk 0:01:39]} 26. Rxg5+ {[%clk 0:00:59]}  Kh6 {[%clk 0:01:39]} 27. Rhg1 {[%clk 0:01:00]}  Rxg5 {[%clk 0:01:35]} 28. fxg5+ {[%clk 0:01:00]}  Kg6 {[%clk 0:01:34]} 29. Kc2 {[%clk 0:01:01]}  Rc4 {[%clk 0:01:29]} 30. Kd3 {[%clk 0:01:01]}  d5 {[%clk 0:01:27]} 31. Re1 {[%clk 0:00:57]}  Rxe4 {[%clk 0:01:24]} 32. Rxe4 {[%clk 0:00:57]}  dxe4+ {[%clk 0:01:24]} 33. Kxe4 {[%clk 0:00:58]}  f6 {[%clk 0:01:12]} 34. gxf6 {[%clk 0:00:56]}  Kxf6 {[%clk 0:01:12]} 35. c4 {[%clk 0:00:56]}  Ke6 {[%clk 0:01:04]} 36. b4 {[%clk 0:00:50]}  Kd6 {[%clk 0:01:03]} 37. a3 {[%clk 0:00:36]}  b6 {[%clk 0:01:01]} 38. Kf5 {[%clk 0:00:32]}  a5 {[%clk 0:00:56]} 39. Kg5 {[%clk 0:00:27]}  axb4 {[%clk 0:00:53]} 40. axb4 {[%clk 0:00:28]}  Ke5 {[%clk 0:00:53]} 41. c5 {[%clk 0:00:18]}  bxc5 {[%clk 0:00:52]} 42. bxc5 {[%clk 0:00:19]}  Kd5 {[%clk 0:00:45]} 43. Kxh5 {[%clk 0:00:20]}  Kxc5 {[%clk 0:00:41]} 44. Kg5 {[%clk 0:00:14]}  e5 {[%clk 0:00:31]} 45. h5 {[%clk 0:00:15]}  e4 {[%clk 0:00:07]} 46. Kf4 {[%clk 0:00:14]} 1-0


[Site "https://www.chess.com"]

[Event "Titled Tuesday Blitz August 08 Late 2023"]
[White "Henriquez Villagra, Cristobal"]
[Black "Kobo, Ori"]
[WhiteFideId "3409350"]
[BlackFideId "2812320"]
[WhiteElo "2851"]
[BlackElo "2746"]
[Result "1-0"]
[Round "7"]
[TimeControl "180+1"]
[Date "2023.08.08"]
[WhiteClock "0:00:06"]
[BlackClock "0:00:02"]
[Board "20"]

1. g3 {[%clk 0:03:00]}  e5 {[%clk 0:02:59]} 2. Bg2 {[%clk 0:03:01]}  d5 {[%clk 0:02:59]} 3. d3 {[%clk 0:03:01]}  c6 {[%clk 0:02:58]} 4. Nf3 {[%clk 0:02:58]}  Bd6 {[%clk 0:02:58]} 5. Nc3 {[%clk 0:02:59]}  Ne7 {[%clk 0:02:57]} 6. e4 {[%clk 0:02:59]}  O-O {[%clk 0:02:56]} 7. O-O {[%clk 0:02:59]}  d4 {[%clk 0:02:51]} 8. Ne2 {[%clk 0:02:54]}  c5 {[%clk 0:02:52]} 9. Nd2 {[%clk 0:02:46]}  Nbc6 {[%clk 0:02:52]} 10. f4 {[%clk 0:02:46]}  exf4 {[%clk 0:02:45]} 11. gxf4 {[%clk 0:02:45]}  f5 {[%clk 0:02:45]} 12. Nf3 {[%clk 0:02:22]}  h6 {[%clk 0:02:35]} 13. e5 {[%clk 0:02:22]}  Bc7 {[%clk 0:02:36]} 14. c4 {[%clk 0:02:22]}  dxc3 {[%clk 0:02:28]} 15. bxc3 {[%clk 0:02:22]}  Be6 {[%clk 0:02:28]} 16. Be3 {[%clk 0:02:20]}  b6 {[%clk 0:02:28]} 17. c4 {[%clk 0:02:12]}  Qd7 {[%clk 0:02:25]} 18. Qb1 {[%clk 0:01:23]}  Rad8 {[%clk 0:02:25]} 19. Rd1 {[%clk 0:01:23]}  Qe8 {[%clk 0:02:18]} 20. a3 {[%clk 0:01:22]}  Qf7 {[%clk 0:01:57]} 21. Ra2 {[%clk 0:01:20]}  Rd7 {[%clk 0:01:54]} 22. Rad2 {[%clk 0:01:21]}  Rfd8 {[%clk 0:01:55]} 23. Kh1 {[%clk 0:01:21]}  Kh7 {[%clk 0:01:43]} 24. Qc2 {[%clk 0:01:16]}  Ng6 {[%clk 0:01:39]} 25. Ng3 {[%clk 0:00:51]}  Nge7 {[%clk 0:01:23]} 26. d4 {[%clk 0:00:48]}  Bxc4 {[%clk 0:01:15]} 27. Rc1 {[%clk 0:00:36]}  Bb3 {[%clk 0:01:10]} 28. Qb2 {[%clk 0:00:36]}  Nxd4 {[%clk 0:00:58]} 29. Nxd4 {[%clk 0:00:32]}  cxd4 {[%clk 0:00:59]} 30. Rxd4 {[%clk 0:00:33]}  Bd5 {[%clk 0:00:53]} 31. Bxd5 {[%clk 0:00:15]}  Nxd5 {[%clk 0:00:52]} 32. Bf2 {[%clk 0:00:14]}  Bb8 {[%clk 0:00:46]} 33. Qb3 {[%clk 0:00:13]}  Qf8 {[%clk 0:00:30]} 34. Rcd1 {[%clk 0:00:13]}  Qe8 {[%clk 0:00:23]} 35. Rxd5 {[%clk 0:00:06]}  Rxd5 {[%clk 0:00:24]} 36. Rxd5 {[%clk 0:00:05]}  Qc6 {[%clk 0:00:24]} 37. Nxf5 {[%clk 0:00:04]}  Qxd5+ {[%clk 0:00:21]} 38. Qxd5 {[%clk 0:00:04]}  Rxd5 {[%clk 0:00:22]} 39. Kg2 {[%clk 0:00:05]}  Ra5 {[%clk 0:00:17]} 40. e6 {[%clk 0:00:04]}  Kg8 {[%clk 0:00:15]} 41. Ne7+ {[%clk 0:00:04]}  Kf8 {[%clk 0:00:12]} 42. Nc6 {[%clk 0:00:05]}  Rxa3 {[%clk 0:00:11]} 43. Nxb8 {[%clk 0:00:05]}  Ke7 {[%clk 0:00:11]} 44. f5 {[%clk 0:00:05]}  g6 {[%clk 0:00:11]} 45. Nc6+ {[%clk 0:00:05]}  Kd6 {[%clk 0:00:05]} 46. fxg6 {[%clk 0:00:06]}  Ra4 {[%clk 0:00:03]} 47. h3 {[%clk 0:00:05]}  Rf4 {[%clk 0:00:04]} 48. g7 {[%clk 0:00:05]}  Kxc6 {[%clk 0:00:02]} 49. g8=Q {[%clk 0:00:06]} 1-0


[Site "https://www.chess.com"]

[Event "Titled Tuesday Blitz August 08 Late 2023"]
[White "Mitrabha, Guha"]
[Black "Morefield, Jason"]
[WhiteFideId "5057000"]
[BlackFideId "30920825"]
[WhiteElo "2841"]
[BlackElo "2720"]
[Result "0-1"]
[Round "7"]
[TimeControl "180+1"]
[Date "2023.08.08"]
[WhiteClock "0:02:13"]
[BlackClock "0:01:10"]
[Board "22"]

1. Nf3 {[%clk 0:03:00]}  d5 {[%clk 0:02:59]} 2. c4 {[%clk 0:02:59]}  c6 {[%clk 0:02:59]} 3. cxd5 {[%clk 0:02:59]}  cxd5 {[%clk 0:03:00]} 4. d4 {[%clk 0:03:00]}  Nf6 {[%clk 0:02:58]} 5. Nc3 {[%clk 0:03:00]}  Nc6 {[%clk 0:02:59]} 6. Bf4 {[%clk 0:03:01]}  a6 {[%clk 0:02:59]} 7. e3 {[%clk 0:03:01]}  Bf5 {[%clk 0:03:00]} 8. Ne5 {[%clk 0:02:59]}  Rc8 {[%clk 0:02:55]} 9. Qa4 {[%clk 0:02:58]}  Qb6 {[%clk 0:02:53]} 10. Qb3 {[%clk 0:02:54]}  Qxb3 {[%clk 0:02:49]} 11. axb3 {[%clk 0:02:55]}  Nb4 {[%clk 0:02:39]} 12. O-O-O {[%clk 0:02:46]}  Ne4 {[%clk 0:02:25]} 13. f3 {[%clk 0:02:34]}  Na2+ {[%clk 0:02:13]} 14. Kb1 {[%clk 0:02:20]}  Nexc3+ {[%clk 0:02:13]} 15. Ka1 {[%clk 0:02:19]}  Nxd1 {[%clk 0:02:07]} 16. Kxa2 {[%clk 0:02:20]}  Rc2 {[%clk 0:01:44]} 17. Bd3 {[%clk 0:02:16]}  Rxb2+ {[%clk 0:01:35]} 18. Ka1 {[%clk 0:02:15]}  Bxd3 {[%clk 0:01:27]} 19. Nxd3 {[%clk 0:02:16]}  Rd2 {[%clk 0:01:13]} 20. Nc5 {[%clk 0:02:13]}  Nc3 {[%clk 0:01:10]} 0-1


[Site "https://www.chess.com"]

[Event "Titled Tuesday Blitz August 08 Late 2023"]
[White "Gadimbayli, Abdulla"]
[Black "GaiozNigalidze"]
[WhiteFideId "13404938"]
[WhiteElo "2839"]
[BlackElo "2450"]
[Result "1-0"]
[Round "7"]
[TimeControl "180+1"]
[Date "2023.08.08"]
[WhiteClock "0:00:17"]
[BlackClock "0:00:20"]
[Board "23"]

1. e4 {[%clk 0:03:00]}  c5 {[%clk 0:02:59]} 2. Nf3 {[%clk 0:03:01]}  Nc6 {[%clk 0:02:59]} 3. Bb5 {[%clk 0:03:01]}  e5 {[%clk 0:02:59]} 4. O-O {[%clk 0:02:55]}  Bd6 {[%clk 0:02:59]} 5. b4 {[%clk 0:02:56]}  Nxb4 {[%clk 0:02:57]} 6. c3 {[%clk 0:02:56]}  Nc6 {[%clk 0:02:53]} 7. d4 {[%clk 0:02:56]}  a6 {[%clk 0:02:31]} 8. dxe5 {[%clk 0:02:48]}  Nxe5 {[%clk 0:02:25]} 9. Ba4 {[%clk 0:02:11]}  Nxf3+ {[%clk 0:02:10]} 10. Qxf3 {[%clk 0:02:12]}  Ne7 {[%clk 0:02:10]} 11. Bg5 {[%clk 0:01:42]}  O-O {[%clk 0:02:01]} 12. Nd2 {[%clk 0:01:42]}  Bc7 {[%clk 0:01:34]} 13. Rad1 {[%clk 0:01:03]}  f6 {[%clk 0:01:31]} 14. Be3 {[%clk 0:00:58]}  Ng6 {[%clk 0:01:07]} 15. Qh5 {[%clk 0:00:44]}  b6 {[%clk 0:00:58]} 16. Qd5+ {[%clk 0:00:44]}  Kh8 {[%clk 0:00:56]} 17. Qxa8 {[%clk 0:00:45]}  Qe7 {[%clk 0:00:49]} 18. Qd5 {[%clk 0:00:44]}  b5 {[%clk 0:00:49]} 19. Bc2 {[%clk 0:00:43]}  d6 {[%clk 0:00:48]} 20. Qh5 {[%clk 0:00:43]}  Ne5 {[%clk 0:00:47]} 21. h3 {[%clk 0:00:39]}  g6 {[%clk 0:00:46]} 22. Qe2 {[%clk 0:00:36]}  Be6 {[%clk 0:00:45]} 23. f4 {[%clk 0:00:35]}  Nf7 {[%clk 0:00:45]} 24. Nf3 {[%clk 0:00:36]}  Bxa2 {[%clk 0:00:43]} 25. Ra1 {[%clk 0:00:27]}  Be6 {[%clk 0:00:39]} 26. Rxa6 {[%clk 0:00:27]}  Qd8 {[%clk 0:00:37]} 27. Rd1 {[%clk 0:00:22]}  b4 {[%clk 0:00:34]} 28. Bxc5 {[%clk 0:00:20]}  b3 {[%clk 0:00:33]} 29. Bb1 {[%clk 0:00:20]}  Qc8 {[%clk 0:00:34]} 30. Bd4 {[%clk 0:00:20]}  Kg8 {[%clk 0:00:31]} 31. f5 {[%clk 0:00:15]}  gxf5 {[%clk 0:00:24]} 32. exf5 {[%clk 0:00:16]}  Bxf5 {[%clk 0:00:25]} 33. Bxf5 {[%clk 0:00:15]}  Qxf5 {[%clk 0:00:24]} 34. Qc4 {[%clk 0:00:16]}  b2 {[%clk 0:00:20]} 35. Qxc7 {[%clk 0:00:15]}  b1=Q {[%clk 0:00:20]} 36. Rxb1 {[%clk 0:00:16]}  Qxb1+ {[%clk 0:00:20]} 37. Kh2 {[%clk 0:00:17]}  Qd3 {[%clk 0:00:21]} 38. Ra7 {[%clk 0:00:16]}  Qf5 {[%clk 0:00:21]} 39. Qe7 {[%clk 0:00:16]}  Qf4+ {[%clk 0:00:21]} 40. Kh1 {[%clk 0:00:16]}  Qc1+ {[%clk 0:00:21]} 41. Ng1 {[%clk 0:00:17]}  Qf4 {[%clk 0:00:20]} 42. Bxf6 {[%clk 0:00:16]}  Qxf6 {[%clk 0:00:20]} 43. Qxf6 {[%clk 0:00:16]}  Rc8 {[%clk 0:00:20]} 44. Qxf7+ {[%clk 0:00:16]}  Kh8 {[%clk 0:00:20]} 45. Qg7# {[%clk 0:00:17]} 1-0


[Site "https://www.chess.com"]

[Event "Titled Tuesday Blitz August 08 Late 2023"]
[White "Khanin, Semen"]
[Black "Tsvetkov, Andrey"]
[WhiteFideId "4111990"]
[BlackFideId "34139360"]
[WhiteElo "2873"]
[BlackElo "2654"]
[Result "1-0"]
[Round "7"]
[TimeControl "180+1"]
[Date "2023.08.08"]
[WhiteClock "0:01:31"]
[BlackClock "0:00:07"]
[Board "27"]

1. e4 {[%clk 0:02:57]}  c5 {[%clk 0:02:59]} 2. Nf3 {[%clk 0:02:57]}  d6 {[%clk 0:03:00]} 3. Bb5+ {[%clk 0:02:57]}  Nd7 {[%clk 0:03:00]} 4. Ba4 {[%clk 0:02:56]}  Nf6 {[%clk 0:02:56]} 5. O-O {[%clk 0:02:56]}  a6 {[%clk 0:02:54]} 6. c4 {[%clk 0:02:56]}  e6 {[%clk 0:02:54]} 7. Nc3 {[%clk 0:02:55]}  Be7 {[%clk 0:02:55]} 8. d3 {[%clk 0:02:56]}  O-O {[%clk 0:02:54]} 9. h3 {[%clk 0:02:56]}  Qc7 {[%clk 0:02:53]} 10. Qe2 {[%clk 0:02:54]}  b6 {[%clk 0:02:53]} 11. Nh2 {[%clk 0:02:53]}  Bb7 {[%clk 0:02:52]} 12. f4 {[%clk 0:02:53]}  Rad8 {[%clk 0:02:44]} 13. Nf3 {[%clk 0:02:53]}  b5 {[%clk 0:02:35]} 14. cxb5 {[%clk 0:02:53]}  Nb6 {[%clk 0:02:36]} 15. bxa6 {[%clk 0:02:51]}  Bxa6 {[%clk 0:02:34]} 16. Bb5 {[%clk 0:02:51]}  Bb7 {[%clk 0:02:30]} 17. a4 {[%clk 0:02:50]}  Bc6 {[%clk 0:02:14]} 18. Bd2 {[%clk 0:02:42]}  Rfe8 {[%clk 0:01:49]} 19. e5 {[%clk 0:02:35]}  Nfd5 {[%clk 0:01:43]} 20. Ne4 {[%clk 0:02:25]}  Bxb5 {[%clk 0:01:29]} 21. axb5 {[%clk 0:02:26]}  dxe5 {[%clk 0:01:30]} 22. fxe5 {[%clk 0:02:24]}  c4 {[%clk 0:01:27]} 23. Nfg5 {[%clk 0:02:20]}  Qxe5 {[%clk 0:00:51]} 24. Qh5 {[%clk 0:02:19]}  Qd4+ {[%clk 0:00:26]} 25. Kh1 {[%clk 0:02:18]}  Bxg5 {[%clk 0:00:26]} 26. Nxg5 {[%clk 0:02:15]}  Nf6 {[%clk 0:00:25]} 27. Rxf6 {[%clk 0:02:10]}  Qxd3 {[%clk 0:00:19]} 28. Qxf7+ {[%clk 0:01:50]}  Kh8 {[%clk 0:00:19]} 29. Nxe6 {[%clk 0:01:36]}  Qd7 {[%clk 0:00:07]} 30. Nxd8 {[%clk 0:01:31]} 1-0


[Site "https://www.chess.com"]

[Event "Titled Tuesday Blitz August 08 Late 2023"]
[White "Goldin, Alexander"]
[Black "Bauman_Guy"]
[WhiteFideId "2019540"]
[WhiteElo "2628"]
[BlackElo "2799"]
[Result "0-1"]
[Round "7"]
[TimeControl "180+1"]
[Date "2023.08.08"]
[WhiteClock "0:00:00"]
[BlackClock "0:00:06"]
[Board "31"]

1. Nf3 {[%clk 0:02:59]}  d5 {[%clk 0:02:59]} 2. g3 {[%clk 0:02:57]}  c6 {[%clk 0:02:59]} 3. Bg2 {[%clk 0:02:57]}  Bg4 {[%clk 0:03:00]} 4. d4 {[%clk 0:02:54]}  Nd7 {[%clk 0:03:00]} 5. O-O {[%clk 0:02:52]}  Ngf6 {[%clk 0:03:00]} 6. c4 {[%clk 0:02:52]}  e6 {[%clk 0:03:00]} 7. Nc3 {[%clk 0:02:52]}  Bd6 {[%clk 0:03:00]} 8. Qb3 {[%clk 0:02:52]}  Qb8 {[%clk 0:02:54]} 9. Nd2 {[%clk 0:02:43]}  O-O {[%clk 0:02:49]} 10. e4 {[%clk 0:02:43]}  dxe4 {[%clk 0:02:48]} 11. Ndxe4 {[%clk 0:02:43]}  Nxe4 {[%clk 0:02:45]} 12. Nxe4 {[%clk 0:02:43]}  Bc7 {[%clk 0:02:45]} 13. Be3 {[%clk 0:02:27]}  Rd8 {[%clk 0:02:44]} 14. Nc3 {[%clk 0:02:20]}  Nf6 {[%clk 0:02:37]} 15. d5 {[%clk 0:02:17]}  cxd5 {[%clk 0:02:19]} 16. cxd5 {[%clk 0:02:16]}  e5 {[%clk 0:01:59]} 17. Bg5 {[%clk 0:01:50]}  Bb6 {[%clk 0:01:37]} 18. h3 {[%clk 0:01:28]}  Bf5 {[%clk 0:01:33]} 19. Bxf6 {[%clk 0:01:20]}  gxf6 {[%clk 0:01:33]} 20. Ne4 {[%clk 0:01:21]}  Kg7 {[%clk 0:01:23]} 21. Qf3 {[%clk 0:01:21]}  Qc8 {[%clk 0:01:06]} 22. Rac1 {[%clk 0:01:09]}  Qd7 {[%clk 0:01:06]} 23. g4 {[%clk 0:01:06]}  Bxe4 {[%clk 0:01:05]} 24. Qxe4 {[%clk 0:01:06]}  Rac8 {[%clk 0:01:04]} 25. Rxc8 {[%clk 0:01:01]}  Rxc8 {[%clk 0:01:02]} 26. Kh1 {[%clk 0:01:02]}  Qb5 {[%clk 0:00:31]} 27. b3 {[%clk 0:01:02]}  Rc3 {[%clk 0:00:18]} 28. f4 {[%clk 0:00:55]}  Bd4 {[%clk 0:00:18]} 29. g5 {[%clk 0:00:54]}  Re3 {[%clk 0:00:17]} 30. Qf5 {[%clk 0:00:53]}  e4 {[%clk 0:00:13]} 31. gxf6+ {[%clk 0:00:48]}  Bxf6 {[%clk 0:00:13]} 32. Rg1 {[%clk 0:00:47]}  Rg3 {[%clk 0:00:13]} 33. Kh2 {[%clk 0:00:28]}  Rg6 {[%clk 0:00:11]} 34. Qxe4 {[%clk 0:00:22]}  Qb6 {[%clk 0:00:10]} 35. Qf3 {[%clk 0:00:18]}  Bd4 {[%clk 0:00:09]} 36. Re1 {[%clk 0:00:17]}  Qd6 {[%clk 0:00:10]} 37. Re4 {[%clk 0:00:15]}  Bf6 {[%clk 0:00:09]} 38. Kh1 {[%clk 0:00:14]}  h6 {[%clk 0:00:09]} 39. Rc4 {[%clk 0:00:09]}  b5 {[%clk 0:00:09]} 40. Rc6 {[%clk 0:00:09]}  Qe7 {[%clk 0:00:10]} 41. Qe4 {[%clk 0:00:08]}  Qa3 {[%clk 0:00:09]} 42. Qc2 {[%clk 0:00:06]}  a5 {[%clk 0:00:08]} 43. Rc7 {[%clk 0:00:06]}  Qd6 {[%clk 0:00:07]} 44. Qc6 {[%clk 0:00:01]}  Qxf4 {[%clk 0:00:07]} 45. Qd7 {[%clk 0:00:00]}  Be5 {[%clk 0:00:06]} 0-1


[Site "https://www.chess.com"]

[Event "Titled Tuesday Blitz August 08 Late 2023"]
[White "Tristan, Leonardo"]
[Black "Tologon tegin, Semetei"]
[WhiteFideId "113816"]
[BlackFideId "13800574"]
[WhiteElo "2788"]
[BlackElo "2623"]
[Result "0-1"]
[Round "7"]
[TimeControl "180+1"]
[Date "2023.08.08"]
[WhiteClock "0:00:04"]
[BlackClock "0:00:16"]
[Board "32"]

1. d4 {[%clk 0:03:00]}  d5 {[%clk 0:02:59]} 2. Nf3 {[%clk 0:03:01]}  Nf6 {[%clk 0:02:59]} 3. Bf4 {[%clk 0:03:01]}  c6 {[%clk 0:02:58]} 4. e3 {[%clk 0:03:01]}  Bf5 {[%clk 0:02:57]} 5. c4 {[%clk 0:03:01]}  Nbd7 {[%clk 0:02:57]} 6. Nc3 {[%clk 0:03:01]}  e6 {[%clk 0:02:56]} 7. Qb3 {[%clk 0:03:02]}  Qb6 {[%clk 0:02:56]} 8. c5 {[%clk 0:03:02]}  Qxb3 {[%clk 0:02:56]} 9. axb3 {[%clk 0:03:03]}  a6 {[%clk 0:02:57]} 10. h3 {[%clk 0:03:03]}  Be7 {[%clk 0:02:52]} 11. b4 {[%clk 0:03:04]}  Rc8 {[%clk 0:02:51]} 12. Nd2 {[%clk 0:03:04]}  Ne4 {[%clk 0:02:44]} 13. Ncxe4 {[%clk 0:02:55]}  Bxe4 {[%clk 0:02:43]} 14. Nxe4 {[%clk 0:02:53]}  dxe4 {[%clk 0:02:44]} 15. f3 {[%clk 0:02:27]}  exf3 {[%clk 0:02:32]} 16. gxf3 {[%clk 0:02:28]}  O-O {[%clk 0:02:26]} 17. Rg1 {[%clk 0:02:07]}  Rfe8 {[%clk 0:02:23]} 18. Bc4 {[%clk 0:01:59]}  Bf6 {[%clk 0:02:18]} 19. Bg3 {[%clk 0:01:53]}  Bd8 {[%clk 0:01:48]} 20. h4 {[%clk 0:01:43]}  Bc7 {[%clk 0:01:47]} 21. Bf2 {[%clk 0:01:43]}  Nf6 {[%clk 0:01:44]} 22. e4 {[%clk 0:01:34]}  Rcd8 {[%clk 0:01:44]} 23. Rd1 {[%clk 0:01:27]}  Rd7 {[%clk 0:01:41]} 24. Ke2 {[%clk 0:01:25]}  Bf4 {[%clk 0:01:33]} 25. Be3 {[%clk 0:01:00]}  Bxe3 {[%clk 0:01:26]} 26. Kxe3 {[%clk 0:01:00]}  Red8 {[%clk 0:01:25]} 27. Rd3 {[%clk 0:01:00]}  h6 {[%clk 0:01:20]} 28. Rgd1 {[%clk 0:00:55]}  Kf8 {[%clk 0:01:20]} 29. Kf4 {[%clk 0:00:49]}  Ke7 {[%clk 0:01:18]} 30. b3 {[%clk 0:00:39]}  Nh5+ {[%clk 0:01:08]} 31. Ke3 {[%clk 0:00:37]}  Nf6 {[%clk 0:01:05]} 32. Rg1 {[%clk 0:00:37]}  Rg8 {[%clk 0:01:03]} 33. Rd2 {[%clk 0:00:36]}  g6 {[%clk 0:00:56]} 34. f4 {[%clk 0:00:26]}  Rgd8 {[%clk 0:00:55]} 35. Be2 {[%clk 0:00:24]}  h5 {[%clk 0:00:20]} 36. Bf3 {[%clk 0:00:25]}  Kf8 {[%clk 0:00:18]} 37. Rg5 {[%clk 0:00:24]}  Nh7 {[%clk 0:00:18]} 38. Re5 {[%clk 0:00:19]}  Nf6 {[%clk 0:00:17]} 39. f5 {[%clk 0:00:16]}  exf5 {[%clk 0:00:17]} 40. exf5 {[%clk 0:00:17]}  Nd5+ {[%clk 0:00:17]} 41. Bxd5 {[%clk 0:00:17]}  Rxd5 {[%clk 0:00:17]} 42. Kf4 {[%clk 0:00:09]}  Rxd4+ {[%clk 0:00:17]} 43. Rxd4 {[%clk 0:00:09]}  Rxd4+ {[%clk 0:00:18]} 44. Kg5 {[%clk 0:00:10]}  Kg7 {[%clk 0:00:16]} 45. f6+ {[%clk 0:00:10]}  Kh7 {[%clk 0:00:16]} 46. Re4 {[%clk 0:00:03]}  Rxe4 {[%clk 0:00:16]} 47. b5 {[%clk 0:00:04]}  Rg4# {[%clk 0:00:16]} 0-1


[Site "https://www.chess.com"]